bitfinex-derivatives/quotes_BTCF0:USTF0_20241122
["timestamp","ask_amount","ask_price","bid_price","bid_amount"]
[1732290209900,0.050623,98675.0,98673.0,0.050623]
[1732290210304,0.050623,98675.0,98674.0,4e-05]
[1732290211208,0.03151784,98679.0,98677.0,0.050622]
[1732290211394,0.08213884,98679.0,98674.0,0.15004]
[1732290211600,0.08213884,98679.0,98678.0,4e-05]
[1732290212396,0.06586101,98679.0,98678.0,4e-05]
[1732290212995,0.06586101,98679.0,98678.0,0.05004]
[1732290214709,0.01524001,98679.0,98678.0,0.05004]
[1732290216704,0.03124212,98679.0,98678.0,0.05004]
[1732290217709,0.03124212,98679.0,98678.0,4e-05]
[1732290217915,0.07514212,98679.0,98678.0,4e-05]
[1732290218314,0.07514212,98679.0,98678.0,0.14004]
[1732290219010,0.03124212,98679.0,98678.0,0.14004]
[1732290222100,0.03124212,98679.0,98678.0,0.50084]
[1732290222305,0.01524001,98679.0,98678.0,0.50084]
[1732290223913,0.01524001,98679.0,98678.0,0.54554]
[1732290227104,0.01524001,98679.0,98678.0,0.50084]
[1732290227305,0.01524001,98689.0,98686.0,0.050617]
[1732290227507,0.0164743,98687.0,98686.0,0.801417]
[1732290227716,0.0164743,98687.0,98686.0,0.801457]
[1732290228108,0.0164743,98687.0,98686.0,0.88084]
[1732290228808,0.0164743,98687.0,98686.0,0.52004]
[1732290230514,0.3772743,98687.0,98686.0,0.52004]
[1732290231713,0.0164743,98687.0,98686.0,0.52004]
[1732290231912,0.0164743,98687.0,98686.0,0.88084]
[1732290232118,0.0670913,98687.0,98686.0,0.88084]
[1732290232317,0.0164743,98687.0,98686.0,0.88084]
[1732290232617,0.03167431,98687.0,98686.0,0.88084]
[1732290233714,0.03167431,98687.0,98686.0,0.92764]
[1732290233915,0.050611,98698.0,98689.0,0.050616]
[1732290234210,0.53173118,98700.0,98697.0,4e-05]
[1732290234410,0.53117117,98700.0,98697.0,0.440651]
[1732290234613,0.53117117,98700.0,98699.0,4e-05]
[1732290235214,0.53117117,98700.0,98699.0,0.15004]
[1732290237515,0.58178117,98700.0,98699.0,0.15004]
[1732290238824,0.58396882,98700.0,98699.0,0.15004]
[1732290242110,0.58396882,98700.0,98699.0,4e-05]
[1732290242317,0.58396882,98700.0,98699.0,0.14004]
[1732290243322,0.58396882,98700.0,98699.0,0.19065]
[1732290243717,0.58396882,98700.0,98699.0,0.14004]
[1732290244920,0.58396882,98700.0,98699.0,4e-05]
[1732290249318,0.58396882,98700.0,98699.0,0.15004]
[1732290251823,0.58396882,98700.0,98699.0,0.20065]
[1732290252217,0.51815881,98700.0,98699.0,0.20065]
[1732290253321,0.06030001,98719.0,98699.0,0.20065]
[1732290253322,0.01520001,98719.0,98699.0,0.454]
[1732290253621,0.06580001,98719.0,98718.0,0.72164]
[1732290253821,0.06580001,98719.0,98718.0,0.82164]
[1732290254015,0.08200164,98719.0,98718.0,0.82164]
[1732290254421,0.08200164,98719.0,98718.0,0.96164]
[1732290256118,0.01620163,98719.0,98718.0,0.96164]
[1732290256323,0.00152003,98721.0,98718.0,0.96164]
[1732290256324,0.00152003,98721.0,98718.0,1.26552]
[1732290256635,0.01520001,98730.0,98720.0,4e-05]
[1732290256831,0.01520001,98730.0,98729.0,0.3608]
[1732290257023,0.06579501,98730.0,98729.0,0.75084]
[1732290257335,0.06579501,98730.0,98729.0,0.88084]
[1732290257535,0.06579501,98730.0,98729.0,0.52004]
[1732290259626,0.08593091,98730.0,98729.0,0.52004]
[1732290260524,0.03533591,98730.0,98729.0,0.931435]
[1732290260729,7.116e-05,98750.0,98749.0,0.050585]
[1732290260931,0.02064537,98750.0,98749.0,1.162185]
[1732290261130,7.116e-05,98750.0,98749.0,1.162225]
[1732290261728,7.116e-05,98750.0,98749.0,1.302225]
[1732290262230,0.02006029,98750.0,98749.0,1.302225]
[1732290263137,0.06577701,98764.0,98755.0,0.050581]
[1732290263441,0.06577701,98764.0,98763.0,0.36084]
[1732290263624,0.08623863,98764.0,98763.0,0.36084]
[1732290263930,0.08623863,98764.0,98763.0,0.38084]
[1732290264939,0.08623863,98764.0,98763.0,0.44084]
[1732290265626,0.08623863,98764.0,98763.0,0.38084]
[1732290266937,0.08623863,98764.0,98763.0,0.52084]
[1732290267542,0.08623863,98764.0,98763.0,0.38084]
[1732290271642,0.08762949,98764.0,98763.0,0.38084]
[1732290271837,0.02185248,98764.0,98763.0,0.49084]
[1732290272532,0.07242948,98764.0,98763.0,0.49084]
[1732290273139,0.06816201,98794.0,98763.0,0.7946]
[1732290273333,0.09851156,98780.0,98777.0,0.3608]
[1732290273528,0.09851156,98780.0,98777.0,0.75084]
[1732290273529,0.05064342,98778.0,98777.0,0.75084]
[1732290274032,0.05064342,98778.0,98777.0,0.88084]
[1732290275836,0.07023915,98778.0,98777.0,0.88084]
[1732290276438,0.07023915,98778.0,98777.0,0.88034]
[1732290278538,0.050571,98777.0,98750.0,0.3608]
[1732290278745,0.050584,98751.0,98750.0,0.4708]
[1732290279045,0.050584,98751.0,98750.0,0.6208]
[1732290279843,0.050584,98751.0,98750.0,0.26]
[1732290280240,0.050584,98751.0,98750.0,0.11]
[1732290280742,0.050589,98740.0,98739.0,0.3608]
[1732290280945,0.050589,98740.0,98739.0,0.4708]
[1732290281141,0.050669,98740.0,98739.0,0.5508]
[1732290281875,0.050669,98740.0,98739.0,0.3608]
[1732290282138,0.050669,98740.0,98729.0,0.36241207]
[1732290282139,0.050594,98732.0,98731.0,0.3608]
[1732290282446,0.050674,98732.0,98731.0,0.3608]
[1732290285843,0.20555198,98732.0,98731.0,0.3608]
[1732290286140,0.189754,98732.0,98731.0,0.3608]
[1732290287637,0.050595,98730.0,98729.0,9.266e-05]
[1732290287837,0.050606,98708.0,98707.0,0.01988546]
[1732290288046,0.050606,98708.0,98707.0,0.14988546]
[1732290288244,0.050686,98708.0,98707.0,0.13]
[1732290288646,0.411486,98708.0,98707.0,0.13]
[1732290288945,0.411486,98708.0,98707.0,0.2400859]
[1732290289144,0.411486,98708.0,98707.0,0.1300859]
[1732290291046,0.189806,98708.0,98707.0,0.5108859]
[1732290291240,0.050686,98708.0,98707.0,0.4908859]
[1732290291435,0.13912,98726.0,98707.0,0.4908859]
[1732290291639,0.050601,98718.0,98717.0,0.3608]
[1732290291839,0.050601,98718.0,98717.0,0.4908]
[1732290292239,0.050601,98718.0,98717.0,0.27]
[1732290292747,0.06580101,98718.0,98717.0,0.27]
[1732290294037,0.050601,98718.0,98717.0,0.27]
[1732290297552,0.050601,98718.0,98717.0,0.2695]
[1732290298348,0.01520001,98720.0,98717.0,0.2695]
[1732290298553,0.050598,98724.0,98717.0,0.2695]
[1732290298753,0.050598,98724.0,98723.0,0.3608]
[1732290299241,0.01671991,98728.0,98723.0,0.3608]
[1732290299449,0.02196906,98728.0,98724.0,0.0454]
[1732290299754,0.050597,98725.0,98724.0,0.0454]
[1732290300148,0.050597,98725.0,98724.0,0.1854]
[1732290300949,0.0015199,98728.0,98727.0,0.050596]
[1732290301253,0.01520001,98746.0,98727.0,0.4903]
[1732290301552,0.01520001,98752.0,98745.0,0.7216]
[1732290301553,0.09851156,98750.0,98745.0,0.7216]
[1732290301749,0.050586,98746.0,98745.0,0.4708]
[1732290301954,0.050586,98746.0,98745.0,0.6108]
[1732290302547,0.050586,98746.0,98745.0,0.4708]
[1732290303657,0.07033637,98746.0,98745.0,0.4708]
[1732290304845,0.07033637,98746.0,98745.0,0.11]
[1732290305049,0.73493637,98746.0,98731.0,0.3608]
[1732290305251,0.050594,98732.0,98731.0,0.02]
[1732290305445,0.050634,98732.0,98731.0,0.16]
[1732290305652,0.050634,98732.0,98731.0,0.02]
[1732290306756,0.443,98732.0,98699.0,0.3608]
[1732290306950,0.443,98732.0,98698.0,0.0899]
[1732290306951,0.050606,98708.0,98698.0,0.0899]
[1732290307158,0.050646,98708.0,98707.0,0.1500859]
[1732290308357,4e-05,98708.0,98707.0,0.1500859]
[1732290308555,0.050646,98708.0,98707.0,0.1500859]
[1732290309262,0.13912,98720.0,98707.0,0.5046119]
[1732290309457,0.050598,98723.0,98719.0,0.3608]
[1732290309760,0.14910156,98740.0,98720.0,0.4041]
[1732290309761,0.09851156,98740.0,98720.0,0.4041]
[1732290309959,0.02050785,98746.0,98720.0,0.4041]
[1732290310167,0.050586,98746.0,98745.0,0.3608]
[1732290310369,0.050586,98746.0,98745.0,0.36084001]
[1732290310862,0.07023123,98746.0,98745.0,0.36084001]
[1732290312660,0.07023123,98746.0,98745.0,0.38084001]
[1732290312661,0.08543124,98746.0,98745.0,0.38084001]
[1732290313057,0.08543124,98746.0,98745.0,0.36084001]
[1732290313367,0.08543124,98746.0,98745.0,0.50084001]
[1732290316863,0.08777025,98746.0,98745.0,0.50084001]
[1732290317559,0.00233901,98746.0,98745.0,0.50084001]
[1732290317776,0.00233901,98746.0,98745.0,0.58974001]
[1732290317960,0.00233901,98746.0,98745.0,0.54554001]
[1732290318656,0.00233901,98746.0,98745.0,0.50084001]
[1732290319656,0.00233901,98746.0,98745.0,0.36084001]
[1732290320172,0.00233901,98746.0,98745.0,0.50084001]
[1732290324068,0.00233901,98746.0,98745.0,4.001e-05]
[1732290324270,0.08883901,98746.0,98745.0,4.001e-05]
[1732290324664,0.00233901,98746.0,98745.0,0.01004001]
[1732290324865,0.00233901,98746.0,98745.0,4.001e-05]
[1732290325265,0.00233901,98746.0,98745.0,0.15004001]
[1732290326168,0.00233901,98746.0,98745.0,4.001e-05]
[1732290326365,0.00233901,98746.0,98745.0,0.14004001]
[1732290326975,0.00233901,98746.0,98745.0,4.001e-05]
[1732290327171,0.00233901,98746.0,98745.0,0.14004001]
[1732290327376,0.00233901,98746.0,98745.0,4.001e-05]
[1732290327772,0.00233901,98746.0,98745.0,0.06004001]
[1732290331082,0.00233901,98746.0,98745.0,0.10284001]
[1732290331570,0.05292501,98746.0,98745.0,0.10284001]
[1732290332679,0.05292501,98746.0,98745.0,0.06004001]
[1732290336276,0.00233901,98746.0,98745.0,0.06004001]
[1732290336481,0.05292501,98746.0,98745.0,0.06004001]
[1732290336985,0.00233901,98746.0,98745.0,0.06004001]
[1732290337193,0.05292501,98746.0,98745.0,0.06004001]
[1732290344988,0.00233901,98746.0,98745.0,0.06004001]
[1732290345393,0.00233901,98746.0,98745.0,0.11062701]
[1732290345695,0.00233901,98746.0,98745.0,0.06004001]
[1732290346184,0.05292501,98746.0,98745.0,0.06004001]
[1732290347486,0.00233901,98746.0,98745.0,0.06015797]
[1732290347793,0.00233901,98746.0,98745.0,0.11074497]
[1732290348291,0.00233901,98746.0,98745.0,0.06015797]
[1732290348491,0.00233901,98746.0,98745.0,0.11074497]
[1732290348993,0.00233901,98746.0,98745.0,0.41454497]
[1732290349492,0.00233901,98746.0,98745.0,0.06015797]
[1732290349697,0.05292501,98746.0,98745.0,0.06015797]
[1732290351795,0.07788105,98746.0,98745.0,0.06015797]
[1732290352092,0.00233901,98746.0,98745.0,0.06015797]
[1732290352285,0.05292501,98746.0,98745.0,0.06015797]
[1732290358002,0.07840778,98746.0,98745.0,0.06015797]
[1732290358498,0.00233901,98746.0,98745.0,0.06015797]
[1732290358695,0.01671921,98766.0,98745.0,0.30395797]
[1732290358896,0.050578,98762.0,98745.0,0.14015797]
[1732290359101,0.050578,98762.0,98761.0,0.7216]
[1732290359698,0.050578,98762.0,98761.0,0.8616]
[1732290360590,0.050578,98762.0,98761.0,0.5008]
[1732290360895,0.050578,98762.0,98761.0,0.7216]
[1732290361098,0.050578,98762.0,98761.0,0.8516]
[1732290361806,0.05196886,98762.0,98761.0,0.8516]
[1732290362604,0.05196886,98762.0,98761.0,0.7216]
[1732290362899,0.05196886,98762.0,98761.0,0.8216]
[1732290363607,0.050586,98746.0,98745.0,0.00015797]
[1732290363792,0.05197686,98746.0,98745.0,0.00015797]
[1732290363998,0.05201686,98746.0,98745.0,0.00015797]
[1732290364304,0.05201686,98746.0,98745.0,0.14015797]
[1732290364503,0.05201686,98746.0,98745.0,0.00015797]
[1732290364802,0.050588,98743.0,98742.0,0.3608]
[1732290365000,0.3038,98745.0,98733.0,0.3608]
[1732290365203,0.19109687,98746.0,98721.0,0.3608]
[1732290365204,0.050597,98726.0,98721.0,0.3608]
[1732290365499,0.050637,98726.0,98725.0,0.11151899]
[1732290365894,0.05202786,98726.0,98725.0,0.11151899]
[1732290366105,0.05202786,98726.0,98725.0,0.00151899]
[1732290368404,0.050603,98714.0,98705.0,0.3608]
[1732290368598,0.050603,98714.0,98695.0,0.3608]
[1732290368599,0.050612,98696.0,98695.0,0.3608]
[1732290368806,0.05200286,98696.0,98695.0,0.3608]
[1732290369100,0.00143086,98696.0,98695.0,0.4708]
[1732290369306,0.00143086,98696.0,98695.0,0.521412]
[1732290369704,0.00143086,98696.0,98695.0,0.825372]
[1732290369911,0.00143086,98696.0,98695.0,0.521412]
[1732290370096,0.00143086,98696.0,98695.0,0.4708]
[1732290372405,0.05204286,98696.0,98695.0,0.4708]
[1732290372904,0.00143086,98696.0,98695.0,0.4708]
[1732290373095,0.00143086,98696.0,98695.0,0.3608]
[1732290373299,0.04583086,98696.0,98695.0,0.4308]
[1732290374004,0.04583086,98696.0,98663.0,0.0425]
[1732290374005,0.34979086,98696.0,98664.0,0.10242199]
[1732290374203,0.05063,98662.0,98660.0,0.0047]
[1732290374403,0.05063,98662.0,98655.0,0.0925]
[1732290374404,0.3608,98666.0,98655.0,0.0925]
[1732290374706,0.050672,98656.0,98655.0,0.0925]
[1732290375009,0.00143086,98656.0,98655.0,0.2225]
[1732290375616,0.00143086,98656.0,98655.0,0.52658]
[1732290375804,0.00143086,98656.0,98655.0,0.55196362]
[1732290376200,0.0015207,98682.0,98672.0,0.050624]
[1732290376401,0.46083226,98682.0,98655.0,0.24788362]
[1732290376712,4e-05,98656.0,98655.0,0.0925]
[1732290376906,4e-05,98656.0,98655.0,0.2225]
[1732290377105,4e-05,98656.0,98655.0,0.52658]
[1732290380201,0.00143114,98656.0,98655.0,0.52658]
[1732290381206,0.00143114,98656.0,98655.0,0.2225]
[1732290382608,0.00143114,98656.0,98655.0,0.13]
[1732290382813,0.00143114,98656.0,98610.0,0.14916756]
[1732290382814,0.101268,98654.0,98631.0,0.1327]
[1732290383017,0.050644,98633.0,98631.0,0.1327]
[1732290383209,0.00143114,98632.0,98631.0,0.1327]
[1732290383409,0.00143114,98632.0,98631.0,0.2627]
[1732290383806,0.00143114,98632.0,98631.0,0.2198]
[1732290384005,0.00143114,98632.0,98631.0,0.1765]
[1732290385320,0.05207614,98632.0,98631.0,0.1765]
[1732290385511,0.00143114,98632.0,98631.0,0.1765]
[1732290385711,0.05207614,98632.0,98631.0,0.1765]
[1732290386332,0.06731615,98632.0,98631.0,0.1765]
[1732290386922,0.06731615,98632.0,98631.0,0.13]
[1732290388018,0.3608,98636.0,98631.0,0.43416]
[1732290388324,0.09851156,98641.0,98631.0,0.13]
[1732290388514,0.14914756,98650.0,98637.0,0.3608]
[1732290388710,0.050633,98655.0,98646.0,0.411437]
[1732290389016,0.04582079,98671.0,98654.0,8e-05]
[1732290389017,0.09851156,98670.0,98654.0,8e-05]
[1732290389322,0.00152079,98671.0,98662.0,0.3608]
[1732290389617,0.00152079,98671.0,98670.0,0.411505]
[1732290389817,0.00152079,98671.0,98670.0,0.41156462]
[1732290390418,0.11375157,98690.0,98670.0,0.51093962]
[1732290390620,0.11375157,98690.0,98677.0,0.050621]
[1732290390621,0.050617,98687.0,98677.0,0.050621]
[1732290390815,0.050617,98687.0,98682.0,8e-05]
[1732290391017,0.02466234,98687.0,98682.0,8e-05]
[1732290391222,0.01524001,98690.0,98686.0,8e-05]
[1732290391415,0.01524001,98690.0,98687.0,0.050616]
[1732290391714,4e-05,98696.0,98689.0,8e-05]
[1732290392115,4e-05,98696.0,98695.0,0.050692]
[1732290392316,4e-05,98696.0,98695.0,8e-05]
[1732290392915,4e-05,98696.0,98695.0,0.15008]
[1732290394821,4e-05,98696.0,98695.0,0.504652]
[1732290395013,4e-05,98696.0,98695.0,0.354652]
[1732290395215,4e-05,98696.0,98695.0,0.494652]
[1732290396321,0.00143086,98696.0,98695.0,0.494652]
[1732290396626,0.00083,98706.0,98705.0,0.050607]
[1732290396923,8.356e-05,98707.0,98705.0,0.411527]
[1732290397319,8.356e-05,98707.0,98706.0,0.00012]
[1732290399026,0.050617,98686.0,98684.0,0.02526761]
[1732290399220,0.050617,98686.0,98680.0,0.36132]
[1732290399422,0.050657,98686.0,98685.0,0.01151974]
[1732290399725,0.050657,98686.0,98685.0,0.00151974]
[1732290399937,0.050657,98686.0,98685.0,0.01151974]
[1732290400224,0.050657,98686.0,98685.0,0.00151974]
[1732290400724,4e-05,98686.0,98685.0,0.15151974]
[1732290400922,0.02553871,98686.0,98685.0,0.15151974]
[1732290401123,4e-05,98686.0,98685.0,0.15151974]
[1732290402229,4e-05,98686.0,98680.0,0.3608]
[1732290402525,0.05066,98681.0,98680.0,0.3608]
[1732290402829,0.05066,98681.0,98680.0,0.4608]
[1732290403325,4e-05,98681.0,98680.0,0.4608]
[1732290403720,0.05066,98681.0,98680.0,0.4608]
[1732290404119,0.07602103,98681.0,98680.0,0.4608]
[1732290404326,0.02540103,98681.0,98680.0,0.3608]
[1732290404526,4e-05,98681.0,98680.0,0.5108]
[1732290407227,0.05066,98681.0,98680.0,0.5108]
[1732290408022,4e-05,98681.0,98680.0,0.5108]
[1732290408233,0.05066,98681.0,98680.0,0.12836243]
[1732290408426,0.05066,98681.0,98680.0,0.27836243]
[1732290408427,4e-05,98681.0,98680.0,0.27836243]
[1732290409533,4e-05,98681.0,98680.0,0.32898243]
[1732290410624,4e-05,98681.0,98680.0,0.27836243]
[1732290411230,4e-05,98681.0,98680.0,0.32898243]
[1732290411530,0.3608,98718.0,98680.0,0.63298243]
[1732290411736,0.09851156,98700.0,98696.0,0.3608]
[1732290411922,0.09851156,98700.0,98697.0,0.0453]
[1732290412234,0.050609,98703.0,98697.0,0.0453]
[1732290412435,0.050609,98702.0,98697.0,0.0453]
[1732290412627,0.09859512,98707.0,98697.0,0.0453]
[1732290412825,0.3608,98702.0,98697.0,0.1753]
[1732290413336,0.411409,98702.0,98697.0,0.1753]
[1732290413629,0.05061,98700.0,98697.0,0.1753]
[1732290414334,0.3608,98702.0,98697.0,0.1753]
[1732290414727,0.050611,98699.0,98697.0,0.1753]
[1732290414923,0.3608,98702.0,98697.0,0.1753]
[1732290415126,0.050611,98698.0,98697.0,0.1753]
[1732290415330,0.050611,98698.0,98697.0,0.13]
[1732290415728,0.050616,98688.0,98687.0,0.01]
[1732290415939,0.411416,98688.0,98687.0,0.01]
[1732290416129,0.050624,98673.0,98672.0,0.0437]
[1732290416329,0.050627,98666.0,98664.0,0.0446]
[1732290416529,0.050624,98673.0,98672.0,0.15]
[1732290416731,0.050624,98673.0,98664.0,0.0446]
[1732290416732,0.050628,98665.0,98664.0,0.1946]
[1732290416944,0.411428,98665.0,98664.0,0.1946]
[1732290417129,0.411468,98665.0,98664.0,0.1946]
[1732290417438,0.050631,98658.0,98657.0,0.00046]
[1732290417834,0.354711,98658.0,98657.0,0.00042]
[1732290418039,0.354711,98658.0,98654.0,8e-05]
[1732290418040,0.30408,98658.0,98654.0,8e-05]
[1732290418232,0.411433,98655.0,98654.0,8e-05]
[1732290418426,0.050647,98628.0,98620.0,0.0939]
[1732290418734,0.772287,98628.0,98627.0,0.0600663]
[1732290420438,0.772287,98628.0,98627.0,6.63e-05]
[1732290420835,0.772287,98628.0,98627.0,0.0300663]
[1732290421134,0.772287,98628.0,98627.0,6.63e-05]
[1732290421135,0.36084,98628.0,98627.0,6.63e-05]
[1732290421325,0.3608,98646.0,98627.0,0.6494263]
[1732290421531,0.3608,98646.0,98636.0,0.1478825]
[1732290421734,0.2894,98646.0,98645.0,4e-05]
[1732290421937,4e-05,98655.0,98645.0,4e-05]
[1732290422238,4e-05,98655.0,98650.0,0.050635]
[1732290422447,4e-05,98655.0,98654.0,4e-05]
[1732290422931,4e-05,98655.0,98654.0,0.14004]
[1732290423237,4e-05,98655.0,98654.0,0.80492]
[1732290423539,0.0024,98680.0,98662.0,0.050629]
[1732290423738,0.06585701,98686.0,98667.0,0.050626]
[1732290423927,0.01524001,98686.0,98679.0,4e-05]
[1732290424129,0.01524001,98686.0,98684.0,4e-05]
[1732290424336,0.01524001,98690.0,98684.0,4e-05]
[1732290424731,0.01524001,98690.0,98684.0,0.14004]
[1732290425334,0.3608,98692.0,98684.0,0.14004]
[1732290426141,0.3608,98692.0,98691.0,4e-05]
[1732290426436,0.3608,98692.0,98691.0,0.14004]
[1732290427542,0.36219088,98692.0,98691.0,0.14004]
[1732290428830,0.36219088,98692.0,98691.0,4e-05]
[1732290430637,0.36219088,98692.0,98691.0,0.01004]
[1732290430943,0.36219088,98692.0,98691.0,4e-05]
[1732290431537,0.36219088,98692.0,98691.0,0.14004]
[1732290432344,0.00139088,98692.0,98691.0,0.14004]
[1732290432540,0.02552231,98715.0,98706.0,0.050607]
[1732290432945,0.02552231,98715.0,98706.0,0.200647]
[1732290433144,0.02552231,98715.0,98706.0,0.15004]
[1732290433453,0.3608,98708.0,98706.0,4e-05]
[1732290433640,0.05068956,98707.0,98706.0,4e-05]
[1732290434334,0.05068956,98707.0,98706.0,0.02004]
[1732290434646,0.00147443,98707.0,98706.0,0.02004]
[1732290436455,0.00147443,98707.0,98706.0,4e-05]
[1732290436640,0.00147443,98707.0,98706.0,0.07004]
[1732290436846,0.0769769,98707.0,98706.0,0.07004]
[1732290437048,0.050609,98702.0,98695.0,0.050612]
[1732290437250,0.3608,98696.0,98695.0,0.050612]
[1732290437452,0.36084,98696.0,98695.0,0.060612]
[1732290437755,0.36223087,98696.0,98695.0,0.060612]
[1732290438247,0.36223087,98696.0,98695.0,0.050612]
[1732290438442,0.36223087,98696.0,98695.0,0.110612]
[1732290439255,0.38759462,98696.0,98695.0,0.110612]
[1732290439453,0.38759462,98696.0,98695.0,0.06]
[1732290439661,0.43820662,98696.0,98695.0,0.06]
[1732290439959,0.38759462,98696.0,98695.0,0.110612]
[1732290440359,0.36223087,98696.0,98695.0,0.110612]
[1732290440663,0.00143087,98696.0,98695.0,0.110612]
[1732290445667,0.00143087,98696.0,98695.0,0.06]
[1732290446769,0.00143087,98696.0,98695.0,0.110612]
[1732290451259,0.00143087,98696.0,98695.0,0.775372]
[1732290451566,0.3608,98710.0,98695.0,0.775372]
[1732290451567,0.3608,98710.0,98706.0,0.050607]
[1732290452092,0.37652002,98718.0,98706.0,0.050647]
[1732290452258,0.01520001,98713.0,98706.0,0.200647]
[1732290453261,0.3608,98718.0,98706.0,0.200647]
[1732290453766,0.01520001,98713.0,98706.0,0.200647]
[1732290454272,0.3608,98718.0,98706.0,0.200647]
[1732290454465,0.01520001,98723.0,98706.0,0.200647]
[1732290454665,0.01520001,98720.0,98706.0,0.200647]
[1732290454865,0.0024,98732.0,98706.0,0.75406469]
[1732290455066,0.01520001,98736.0,98729.0,0.050595]
[1732290455367,0.01520001,98736.0,98729.0,0.200635]
[1732290455871,0.01520001,98746.0,98729.0,0.200635]
[1732290456169,0.050592,98736.0,98730.0,0.3608]
[1732290456374,0.09843595,98740.0,98730.0,0.3608]
[1732290456570,0.3608,98745.0,98735.0,0.050592]
[1732290456969,0.3608,98745.0,98730.0,0.5008]
[1732290457167,0.3608,98745.0,98739.0,0.05059]
[1732290457668,0.3608,98745.0,98740.0,0.050589]
[1732290457864,0.3608,98745.0,98736.0,0.050591]
[1732290458174,0.3608,98745.0,98739.0,0.14]
[1732290458372,0.3608,98745.0,98730.0,0.45923595]
[1732290458575,0.3608,98745.0,98739.0,0.15]
[1732290458874,0.3608,98745.0,98744.0,0.050587]
[1732290459772,0.3608,98745.0,98744.0,0.190587]
[1732290460474,0.38635918,98745.0,98744.0,0.14]
[1732290463277,0.38635918,98745.0,98744.0,0.07]
[1732290466277,0.3608,98745.0,98744.0,0.07]
[1732290466574,0.01520001,98748.0,98744.0,0.07]
[1732290466783,0.03998066,98748.0,98744.0,0.07]
[1732290466979,0.01520001,98748.0,98747.0,4e-05]
[1732290467279,0.37600001,98748.0,98747.0,4e-05]
[1732290467577,0.37600001,98748.0,98747.0,0.15004]
[1732290470074,0.3608,98748.0,98747.0,0.200626]
[1732290470373,0.3608,98748.0,98747.0,0.20072195]
[1732290470972,0.01520001,98750.0,98747.0,0.15013595]
[1732290471172,0.00151954,98754.0,98747.0,0.15013595]
[1732290471477,0.00151954,98754.0,98749.0,4e-05]
[1732290471672,0.00151954,98754.0,98753.0,4e-05]
[1732290471880,0.41290154,98754.0,98753.0,4e-05]
[1732290472069,0.41290154,98754.0,98753.0,0.12004]
[1732290472272,0.37600001,98754.0,98753.0,0.12004]
[1732290473371,0.3608,98754.0,98753.0,0.12004]
[1732290473680,0.3608,98754.0,98753.0,0.170623]
[1732290474370,0.3608,98754.0,98753.0,0.12004]
[1732290480980,0.411382,98754.0,98753.0,0.12004]
[1732290481179,0.411382,98754.0,98753.0,4e-05]
[1732290481973,0.050585,98748.0,98747.0,9.595e-05]
[1732290482284,0.187585,98748.0,98747.0,0.06862151]
[1732290482474,0.491385,98748.0,98747.0,0.06862151]
[1732290482672,0.050598,98723.0,98720.0,0.0506]
[1732290482879,0.3608,98721.0,98720.0,0.0506]
[1732290483089,0.411439,98721.0,98720.0,0.13]
[1732290483285,0.36084,98721.0,98720.0,0.13]
[1732290483984,0.36084,98721.0,98720.0,0.1806]
[1732290485087,0.36084,98721.0,98720.0,0.13]
[1732290485385,0.36084,98721.0,98720.0,0.1806]
[1732290486785,0.36084,98721.0,98720.0,0.13]
[1732290488290,0.36084,98721.0,98713.0,0.00049]
[1732290488487,0.36084,98721.0,98709.0,0.00151954]
[1732290488792,0.3608,98711.0,98709.0,0.00151954]
[1732290488989,0.411404,98711.0,98709.0,0.00151954]
[1732290489494,0.050605,98709.0,98695.0,0.050612]
[1732290489690,0.3608,98701.0,98688.0,0.0467]
[1732290490294,0.3608,98711.0,98690.0,0.09843595]
[1732290490592,0.3608,98711.0,98710.0,4e-05]
[1732290491386,0.3608,98725.0,98710.0,4e-05]
[1732290491891,0.3608,98725.0,98724.0,4e-05]
[1732290495187,0.050601,98718.0,98690.0,0.0449]
[1732290495395,0.05061,98701.0,98691.0,0.10242199]
[1732290495694,4e-05,98695.0,98690.0,0.19322199]
[1732290496192,4e-05,98691.0,98690.0,0.0908]
[1732290496586,4e-05,98691.0,98690.0,0.3948]
[1732290496994,4e-05,98691.0,98690.0,0.49722199]
[1732290497700,4e-05,98691.0,98690.0,0.3948]
[1732290499302,4e-05,98691.0,98690.0,0.0908]
[1732290499597,4e-05,98691.0,98690.0,0.0459]
[1732290499796,0.050655,98691.0,98689.0,0.3608]
[1732290500198,4e-05,98690.0,98689.0,0.3608]
[1732290500591,0.050655,98690.0,98679.0,0.0448]
[1732290500901,0.050655,98690.0,98670.0,0.0439]
[1732290500902,0.3608,98680.0,98670.0,0.0439]
[1732290501198,0.050626,98669.0,98662.0,0.0448]
[1732290501600,0.050666,98669.0,98662.0,0.0448]
[1732290501794,0.050666,98669.0,98665.0,0.02545979]
[1732290502198,0.050666,98669.0,98662.0,0.0448]
[1732290504498,4e-05,98669.0,98662.0,0.0448]
[1732290504700,4e-05,98669.0,98664.0,0.3608]
[1732290504899,4e-05,98669.0,98662.0,0.0448]
[1732290505097,4e-05,98669.0,98668.0,0.30556001]
[1732290505298,4e-05,98669.0,98668.0,0.3312596]
[1732290505611,4e-05,98669.0,98668.0,0.35618601]
[1732290506402,4e-05,98695.0,98668.0,0.35618601]
[1732290506403,4e-05,98695.0,98668.0,0.30556001]
[1732290506714,0.050617,98687.0,98670.0,0.09843595]
[1732290507001,0.3608,98691.0,98670.0,0.09843595]
[1732290507002,0.050616,98689.0,98670.0,0.09843595]
[1732290507213,4e-05,98695.0,98668.0,0.00152001]
[1732290507214,0.050626,98669.0,98668.0,0.00152001]
[1732290507506,0.050666,98669.0,98668.0,0.00152001]
[1732290508404,0.491306,98669.0,98668.0,0.00148001]
[1732290508605,0.50654601,98669.0,98668.0,0.00148001]
[1732290509511,0.20250601,98669.0,98668.0,0.00148001]
[1732290509904,0.50654601,98669.0,98668.0,0.00148001]
[1732290510207,0.50654601,98669.0,98647.0,0.3608]
[1732290510407,0.050633,98655.0,98647.0,0.3608]
[1732290510599,0.36084,98648.0,98625.0,0.0447]
[1732290510803,0.36084,98648.0,98629.0,0.0486]
[1732290511106,4e-05,98635.0,98629.0,0.0486]
[1732290511306,4e-05,98635.0,98630.0,0.19841506]